{"text_format":"3","workbook":"xlsx","n_sheets":1,"sheets":["Krvný tlak a glukóza"],"not_rendered":{"defined_names":9},"read":"whole","date_system":"1900"}

{"sheet":"Krvný tlak a glukóza","index":0,"n_rows":13,"n_cols":11,"rows_kept":13,"merged":[[0,1,4,3],[0,4,0,9],[1,4,1,6],[1,7,1,9],[3,7,4,7],[3,8,4,8],[3,9,4,9]]}
[null,"Evidenčný list krvného tlaku a glukózy",null,null,"Prispôsobte hodnoty rozsahu v bunkách E2 až J5 nižšie."]
[{"$nulls":4},"KRVNÝ TLAK",null,null,"ROZSAH GLUKÓZY"]
[{"$nulls":4},120,"SYSTOLICKÝ",140,70,100,150]
[{"$nulls":4},80,"DIASTOLICKÝ",90,"NÍZKY","NORMÁLNA","VYSOKÝ"]
[{"$nulls":4},"CIEĽOVÝ TLAK",null,"VOLAŤ LEKÁROVI"]
[null,"Dátum","Čas","Udalosť","Systolický","Diastolický","Pulz","Glukóza","Úroveň","Stav","Poznámky"]
[null,{"$f":"TODAY()","v":"2018-06-28"},"06:00:00","Prebudenie",129,79,72,55,{"$f":"KrvnýTlakAGlukóza[[#This Row],[Glukóza]]","v":55},{"$f":"IFERROR(IF(KrvnýTlakAGlukóza[[#This Row],[Úroveň]]=0,\"\",IF(KrvnýTlakAGlukóza[[#This Row],[Úroveň]]<=GNízka,\"NÍZKY\",IF(AND(KrvnýTlakAGlukóza[[#This Row],[Úroveň]]>GNízka,KrvnýTlakAGlukóza[[#This Row],[Úroveň]]<GVysoká),\"NORMÁLNA\",\"VYSOKÝ\"))), \"\")","v":"NÍZKY"}]
[null,{"$f":"TODAY()","v":"2018-06-28"},"07:00:00","Pred jedlom",120,80,74,70,{"$f":"KrvnýTlakAGlukóza[[#This Row],[Glukóza]]","v":70},{"$f":"IFERROR(IF(KrvnýTlakAGlukóza[[#This Row],[Úroveň]]=0,\"\",IF(KrvnýTlakAGlukóza[[#This Row],[Úroveň]]<=GNízka,\"NÍZKY\",IF(AND(KrvnýTlakAGlukóza[[#This Row],[Úroveň]]>GNízka,KrvnýTlakAGlukóza[[#This Row],[Úroveň]]<GVysoká),\"NORMÁLNA\",\"VYSOKÝ\"))), \"\")","v":"NÍZKY"}]
[null,"2018-06-28","09:00:00","Po jedle",133,80,75,75,{"$f":"KrvnýTlakAGlukóza[[#This Row],[Glukóza]]","v":75},{"$f":"IFERROR(IF(KrvnýTlakAGlukóza[[#This Row],[Úroveň]]=0,\"\",IF(KrvnýTlakAGlukóza[[#This Row],[Úroveň]]<=GNízka,\"NÍZKY\",IF(AND(KrvnýTlakAGlukóza[[#This Row],[Úroveň]]>GNízka,KrvnýTlakAGlukóza[[#This Row],[Úroveň]]<GVysoká),\"NORMÁLNA\",\"VYSOKÝ\"))), \"\")","v":"NORMÁLNA"}]
[null,"2018-06-28","10:00:00","Len KT",143,91,75,190,{"$f":"KrvnýTlakAGlukóza[[#This Row],[Glukóza]]","v":190},{"$f":"IFERROR(IF(KrvnýTlakAGlukóza[[#This Row],[Úroveň]]=0,\"\",IF(KrvnýTlakAGlukóza[[#This Row],[Úroveň]]<=GNízka,\"NÍZKY\",IF(AND(KrvnýTlakAGlukóza[[#This Row],[Úroveň]]>GNízka,KrvnýTlakAGlukóza[[#This Row],[Úroveň]]<GVysoká),\"NORMÁLNA\",\"VYSOKÝ\"))), \"\")","v":"VYSOKÝ"}]
[null,"2018-06-28","12:00:00","Pred jedlom",141,84,70,140,{"$f":"KrvnýTlakAGlukóza[[#This Row],[Glukóza]]","v":140},{"$f":"IFERROR(IF(KrvnýTlakAGlukóza[[#This Row],[Úroveň]]=0,\"\",IF(KrvnýTlakAGlukóza[[#This Row],[Úroveň]]<=GNízka,\"NÍZKY\",IF(AND(KrvnýTlakAGlukóza[[#This Row],[Úroveň]]>GNízka,KrvnýTlakAGlukóza[[#This Row],[Úroveň]]<GVysoká),\"NORMÁLNA\",\"VYSOKÝ\"))), \"\")","v":"NORMÁLNA"}]
[null,{"$f":"TODAY()","v":"2018-06-28"},"15:00:00","Po jedle",132,80,68,90,{"$f":"KrvnýTlakAGlukóza[[#This Row],[Glukóza]]","v":90},{"$f":"IFERROR(IF(KrvnýTlakAGlukóza[[#This Row],[Úroveň]]=0,\"\",IF(KrvnýTlakAGlukóza[[#This Row],[Úroveň]]<=GNízka,\"NÍZKY\",IF(AND(KrvnýTlakAGlukóza[[#This Row],[Úroveň]]>GNízka,KrvnýTlakAGlukóza[[#This Row],[Úroveň]]<GVysoká),\"NORMÁLNA\",\"VYSOKÝ\"))), \"\")","v":"NORMÁLNA"},"Lieky na KT užívajte s jedlom"]
[null,"Priemery",null,null,{"$f":"SUBTOTAL(101,KrvnýTlakAGlukóza[Systolický])","v":133},{"$f":"SUBTOTAL(101,KrvnýTlakAGlukóza[Diastolický])","v":{"v":82.33333333333333,"d":"82"}},{"$f":"SUBTOTAL(101,KrvnýTlakAGlukóza[Pulz])","v":{"v":72.33333333333333,"d":"72"}},{"$f":"SUBTOTAL(101,KrvnýTlakAGlukóza[Glukóza])","v":{"v":103.33333333333333,"d":"103"}}]